bitfinex-derivatives/quotes_SOLF0:USTF0_20250630
["timestamp","ask_amount","ask_price","bid_price","bid_amount"]
[1751279424531,32.76,150.26,150.23,6.6545]
[1751279424729,1.81361265,150.24,150.23,6.6545]
[1751279425537,1.81361265,150.24,150.22,6.655]
[1751279425736,1.81361265,150.23,150.22,6.655]
[1751279429332,1.81361265,150.23,150.19,8.03187054]
[1751279429536,1.81361265,150.23,150.21,6.6555]
[1751279431234,41.22751265,150.26,150.22,1.81361265]
[1751279431429,34.57361265,150.26,150.22,1.81361265]
[1751279431937,1.81361265,150.25,150.22,1.81361265]
[1751279432536,8.46761265,150.25,150.23,6.6545]
[1751279436240,6.654,150.25,150.23,6.6545]
[1751279436438,8.46761265,150.25,150.23,6.6545]
[1751279437839,8.46801265,150.24,150.22,6.655]
[1751279438440,1.81361265,150.24,150.23,6.6548]
[1751279446442,1.81361265,150.24,150.21,6.21825789]
[1751279446648,1.81361265,150.22,150.2,6.21825789]
[1751279447147,1.81361265,150.22,150.2,12.87415789]
[1751279448248,8.46891265,150.22,150.2,12.87415789]
[1751279448449,1.81361265,150.21,150.2,6.21825789]
[1751279450348,8.46931265,150.21,150.2,6.21825789]
[1751279450548,8.46931265,150.21,150.19,6.21825789]
[1751279451546,8.46931265,150.21,150.19,12.87475789]
[1751279451754,8.46931265,150.21,150.19,6.21825789]
[1751279456553,8.46931265,150.21,150.19,12.87485789]
[1751279456755,6.6557,150.21,150.19,12.87485789]
[1751279456955,8.46931265,150.21,150.19,12.87485789]
[1751279457754,8.46931265,150.21,150.19,6.6566]
[1751279458856,8.46931265,150.21,150.18,14.68867054]
[1751279459055,8.46931265,150.21,150.18,12.87505789]
[1751279459454,8.46931265,150.21,150.19,6.6565]
[1751279460554,1.81361265,150.2,150.17,8.56235789]
[1751279460753,1.81361265,150.19,150.17,6.21825789]
[1751279461058,1.81361265,150.19,150.17,12.87535789]
[1751279461655,1.81361265,150.19,150.18,6.657]
[1751279462059,1.81361265,150.19,150.17,6.21825789]
[1751279462362,8.47051265,150.19,150.17,6.6572]
[1751279462558,1.81361265,150.18,150.16,6.21825789]
[1751279462863,1.81361265,150.18,150.15,38.93825789]
[1751279463061,8.47091265,150.18,150.15,6.21825789]
[1751279463262,1.81361265,150.18,150.15,8.03187054]
[1751279463661,1.81361265,150.19,150.15,8.03187054]
[1751279464473,32.7,150.22,150.16,6.6576]
[1751279464668,1.81361265,150.19,150.16,6.6576]
[1751279464876,1.81361265,150.19,150.15,8.03187054]
[1751279465065,1.81361265,150.19,150.16,1.81361265]
[1751279465271,8.47031265,150.19,150.16,8.47111265]
[1751279465576,1.81361265,150.19,150.16,8.47111265]
[1751279465777,1.81361265,150.18,150.16,6.6575]
[1751279466374,1.81361265,150.18,150.15,12.87645789]
[1751279466976,6.6575,150.17,150.15,12.87645789]
[1751279467378,6.6575,150.17,150.15,6.6582]
[1751279468583,8.47091265,150.18,150.15,6.6582]
[1751279469081,1.81361265,150.17,150.15,6.6582]
[1751279469482,8.47091265,150.18,150.16,6.6579]
[1751279469886,6.6568,150.19,150.16,6.6579]
[1751279470184,8.47041265,150.19,150.16,6.6579]
[1751279471684,8.47041265,150.19,150.17,5.49589745]
[1751279471880,8.47041265,150.19,150.18,5.49589745]
[1751279473284,8.47041265,150.19,150.16,6.6579]
[1751279473482,8.47041265,150.19,150.17,5.49478471]
[1751279473685,8.47041265,150.19,150.16,6.6579]
[1751279473980,8.47041265,150.19,150.17,5.49478471]
[1751279474184,8.47041265,150.19,150.16,6.6579]
[1751279474386,8.47041265,150.19,150.17,5.49497135]
[1751279474580,8.47041265,150.19,150.16,6.6579]
[1751279474786,8.47041265,150.19,150.17,5.49468305]
[1751279475088,6.6564,150.2,150.16,1.81361265]
[1751279475385,6.6564,150.2,150.14,8.58925789]
[1751279475386,8.47001265,150.2,150.17,7.30789017]
[1751279475585,8.47001265,150.2,150.18,5.49427752]
[1751279475887,8.47001265,150.2,150.18,6.6567]
[1751279476287,8.47001265,150.2,150.19,5.49385556]
[1751279479681,6.6568,150.19,150.17,6.6573]
[1751279479887,8.47041265,150.19,150.18,5.49539609]
[1751279480486,6.6572,150.18,150.14,10.40287054]
[1751279480784,8.47081265,150.18,150.15,12.15457107]
[1751279480989,8.47081265,150.18,150.16,5.49657107]
[1751279481188,6.6568,150.19,150.17,5.49657107]
[1751279481384,32.7,150.22,150.16,1.81361265]
[1751279481600,32.7,150.22,150.17,5.49676877]
[1751279481794,8.47001265,150.2,150.18,5.49676877]
[1751279481993,8.47001265,150.2,150.17,6.6572]
[1751279482190,8.47001265,150.2,150.18,5.49580422]
[1751279482390,8.47001265,150.2,150.17,6.6572]
[1751279483395,6.6566,150.19,150.17,6.6572]
[1751279483697,8.47021265,150.19,150.17,6.6572]
[1751279484298,6.6566,150.19,150.17,6.6572]
[1751279484492,8.47021265,150.19,150.17,6.6572]
[1751279485493,6.657,150.18,150.16,8.47131265]
[1751279485699,8.47061265,150.18,150.15,6.21825789]
[1751279486199,8.47061265,150.18,150.15,12.87635789]
[1751279486494,6.6576,150.17,150.15,12.87635789]
[1751279486703,6.6576,150.17,150.15,6.6581]
[1751279487198,8.47081265,150.18,150.15,6.6581]
[1751279489203,8.47081265,150.18,150.15,12.87635789]
[1751279489594,6.6575,150.17,150.15,12.87635789]
[1751279491402,6.6575,150.17,150.16,5.507058]
[1751279491601,8.47111265,150.17,150.16,5.507058]
[1751279492496,1.81361265,150.17,150.11,6.21825789]
[1751279492701,1.81361265,150.13,150.11,6.21825789]
[1751279492895,1.81361265,150.13,150.11,12.87815789]
[1751279493297,1.81361265,150.12,150.1,12.87865789]
[1751279493497,1.81361265,150.11,150.09,6.21825789]
[1751279493697,1.81361265,150.1,150.09,6.21825789]
[1751279493902,2.84085596,150.12,150.09,6.21825789]
[1751279494405,2.84085596,150.12,150.09,6.6607]
[1751279495102,2.84085596,150.12,150.1,6.6604]
[1751279497207,2.84085596,150.12,150.09,6.6608]
[1751279497410,2.84085596,150.1,150.06,6.21825789]
[1751279497710,2.84085596,150.1,150.05,6.21825789]
[1751279497901,9.50145596,150.1,150.07,6.6617]
[1751279498101,9.50145596,150.1,150.05,6.21825789]
[1751279498305,35.54085596,150.1,150.04,6.21825789]
[1751279498502,6.6611,150.09,150.04,6.21825789]
[1751279498801,6.6611,150.09,150.03,41.20325789]
[1751279499196,32.7,150.1,150.04,9.05911385]
[1751279499703,32.7,150.1,150.08,6.6612]
[1751279500608,39.3607,150.1,150.08,6.6612]
[1751279501107,32.7,150.1,150.08,6.6612]
[1751279502207,32.7,150.1,150.04,9.05911385]
[1751279502407,32.7,150.1,150.04,2.84085596]
[1751279502808,32.7,150.1,150.08,6.6611]
[1751279503504,32.7,150.1,150.04,2.84085596]
[1751279503811,133.02615596,150.16,150.03,41.20325789]
[1751279503812,6.6595,150.13,150.06,2.84085596]
[1751279504010,39.3595,150.13,150.06,2.84085596]
[1751279504206,2.84085596,150.16,150.08,2.84085596]
[1751279504407,6.6586,150.15,150.09,5.49971446]
[1751279504605,6.6586,150.15,150.13,6.659]
[1751279506706,35.54085596,150.16,150.13,6.659]
[1751279506910,42.19895596,150.16,150.14,6.6588]
[1751279507516,6.6584,150.15,150.13,6.659]
[1751279509712,39.3581,150.16,150.14,6.6585]
[1751279509911,39.3581,150.16,150.1,2.84085596]
[1751279509912,32.7,150.16,150.1,2.84085596]
[1751279510112,32.7,150.16,150.11,5.47883793]
[1751279510313,2.84085596,150.18,150.12,5.47883793]
[1751279510511,2.84085596,150.18,150.13,5.47883793]
[1751279510719,2.84085596,150.18,150.11,32.7]
[1751279511017,2.84085596,150.18,150.12,5.47867108]
[1751279511216,2.84085596,150.18,150.13,5.47867108]
[1751279511412,6.6572,150.18,150.12,2.84085596]
[1751279511808,32.7,150.19,150.12,2.84085596]
[1751279512616,6.6575,150.17,150.15,6.6581]
[1751279514320,6.6572,150.18,150.15,6.6581]
[1751279515520,6.6572,150.18,150.16,6.6579]
[1751279516021,39.3568,150.19,150.16,6.6579]
[1751279517622,6.6571,150.18,150.16,6.6579]
[1751279517821,32.7,150.19,150.16,6.6579]
[1751279518019,39.3568,150.19,150.16,6.6579]
[1751279518426,32.7,150.19,150.18,6.657]
[1751279519325,32.7,150.19,150.17,6.6572]
[1751279519623,39.3566,150.19,150.17,6.6572]
[1751279520117,32.7,150.19,150.12,13.68101385]
[1751279520322,6.6575,150.17,150.12,7.46275596]
[1751279522425,6.6575,150.17,150.14,6.6586]
[1751279525427,6.6575,150.17,150.15,6.6583]
[1751279528329,6.6575,150.17,150.15,6.6583]
[1751279529628,6.658,150.16,150.14,6.6586]
[1751279529831,6.658,150.16,150.12,7.46275596]
[1751279529832,2.84085596,150.16,150.09,8.58785789]
[1751279530026,2.84085596,150.14,150.09,2.3696]
[1751279530231,6.6595,150.13,150.1,6.6604]
[1751279530827,6.6595,150.13,150.11,6.6601]
[1751279533031,6.6595,150.13,150.1,6.6604]
[1751279533222,6.6595,150.13,150.07,32.7]
[1751279533223,2.84085596,150.14,150.07,38.91825789]
[1751279533430,160.44,150.15,150.07,38.91825789]
[1751279533431,2.84085596,150.12,150.07,38.91825789]
[1751279533828,6.6604,150.11,150.09,6.661]
[1751279535228,6.6606,150.1,150.08,6.6613]
[1751279535841,6.6606,150.1,150.09,5.50153003]
[1751279538538,2.84085596,150.1,150.04,6.21825789]
[1751279538742,2.84085596,150.11,150.05,5.504546]
[1751279538935,2.84085596,150.11,150.07,6.6616]
[1751279539139,6.6608,150.1,150.08,5.504546]
[1751279539340,2.84085596,150.11,150.05,6.21825789]
[1751279539543,2.84085596,150.11,150.06,5.50300215]
[1751279539842,2.84085596,150.11,150.07,5.50300215]
[1751279540145,6.6615,150.08,150.06,6.6621]
[1751279540440,6.6615,150.08,150.07,5.50396954]
[1751279540640,6.6612,150.09,150.07,12.16576954]
[1751279540840,6.6612,150.09,150.07,6.6618]
[1751279541448,9.50145596,150.11,150.04,9.05911385]
[1751279541741,32.7,150.12,150.05,11.71981341]
[1751279541935,32.7,150.12,150.06,5.50155552]
[1751279542139,32.7,150.14,150.08,2.84085596]
[1751279542446,32.7,150.17,150.1,2.84085596]
[1751279542738,32.7,150.17,150.12,2.84085596]
[1751279542739,39.3577,150.17,150.12,2.84085596]
[1751279542938,39.3577,150.17,150.13,5.50155552]
[1751279543136,32.7,150.17,150.15,6.6581]
[1751279543342,32.7,150.17,150.14,5.50274357]
[1751279543343,32.7,150.17,150.13,2.3166]
[1751279543643,39.3575,150.17,150.15,6.6581]
[1751279544440,32.7,150.17,150.16,6.6579]
[1751279544645,6.6572,150.18,150.16,6.6579]
[1751279545040,6.6572,150.18,150.15,6.6582]
[1751279545240,6.6576,150.17,150.16,5.50286259]
[1751279545548,6.6576,150.17,150.15,6.6582]
[1751279547244,6.6576,150.17,150.13,2.3166]
[1751279548545,6.6576,150.17,150.15,6.6583]
[1751279550149,6.6576,150.17,150.14,6.6586]
[1751279550352,6.6581,150.16,150.12,6.21825789]
[1751279550652,6.6581,150.16,150.11,6.21825789]
[1751279550853,6.6584,150.15,150.13,6.6589]
[1751279551053,2.84085596,150.15,150.11,6.21825789]
[1751279551254,2.84085596,150.15,150.1,6.21825789]
[1751279551447,6.6591,150.14,150.11,6.6599]
[1751279552352,6.6591,150.14,150.12,6.6597]
[1751279555248,6.6593,150.13,150.11,6.6599]
[1751279560159,6.6593,150.13,150.1,6.6604]
[1751279560357,6.6597,150.12,150.1,6.6604]
[1751279562760,6.6595,150.13,150.1,6.6604]
[1751279570466,6.6595,150.13,150.11,6.6601]
[1751279570865,6.6595,150.13,150.1,6.6603]
[1751279574667,6.6597,150.12,150.1,6.6603]
[1751279576264,6.6597,150.12,150.11,6.6601]
[1751279576464,6.6595,150.13,150.11,6.6601]
[1751279577967,6.6595,150.13,150.1,6.6603]
[1751279578470,6.6597,150.12,150.1,6.6603]
[1751279580972,8.47720466,150.12,150.1,6.6603]
[1751279581176,32.76,150.16,150.09,6.21825789]
[1751279581177,1.81750466,150.11,150.09,6.21825789]
[1751279581472,1.81750466,150.11,150.08,8.40685789]
[1751279582071,34.9322,150.16,150.08,8.40685789]
[1751279582274,1.81750466,150.11,150.08,8.40685789]
[1751279582472,8.47790466,150.11,150.09,6.6608]
[1751279584275,1.81750466,150.11,150.1,6.6606]
[1751279584876,8.47760466,150.11,150.09,6.6608]
[1751279585071,34.9322,150.16,150.08,10.22436255]
[1751279585377,1.81750466,150.12,150.09,6.21825789]
[1751279586072,1.81750466,150.13,150.09,8.03576255]
[1751279586575,8.47690466,150.13,150.11,6.6599]
[1751279588068,1.81750466,150.13,150.09,8.03576255]
[1751279588277,34.9322,150.16,150.09,8.03576255]
[1751279588576,1.81750466,150.14,150.1,8.03576255]
[1751279588770,1.81750466,150.14,150.13,6.6592]
[1751279590571,1.81750466,150.15,150.14,6.6587]
[1751279590772,1.81750466,150.16,150.12,8.03576255]
[1751279592280,1.81750466,150.16,150.14,6.6585]
[1751279592684,8.47550466,150.16,150.14,6.6585]
[1751279593880,6.658,150.16,150.14,6.6585]
[1751279595185,6.6584,150.15,150.13,6.659]
[1751279596280,6.6581,150.16,150.14,6.6588]
[1751279597790,2.83871385,150.15,150.12,6.21825789]
[1751279597989,35.53871385,150.15,150.1,6.21825789]
[1751279598383,35.53871385,150.15,150.11,6.6599]
[1751279599586,6.6593,150.13,150.11,6.6599]
[1751279600588,6.6593,150.13,150.11,12.87815789]
[1751279605888,6.659,150.14,150.11,12.87815789]
[1751279607896,6.6592,150.13,150.11,12.87815789]
[1751279609199,6.6592,150.13,150.12,6.6597]
[1751279609496,6.659,150.14,150.12,6.6597]
[1751279615809,1.81743932,150.13,150.12,6.6597]
[1751279617109,8.47663932,150.13,150.12,6.6597]
[1751279617313,8.47663932,150.13,150.11,12.87815789]
[1751279621324,6.6597,150.12,150.11,6.21825789]
[1751279621514,8.47713932,150.12,150.11,6.21825789]
[1751279623225,8.47713932,150.12,150.1,12.87875789]
[1751279623428,8.47753932,150.11,150.1,6.21825789]
[1751279623721,1.81743932,150.11,150.08,6.21825789]
[1751279623922,1.81743932,150.09,150.08,6.21825789]
[1751279624116,1.81743932,150.09,150.08,12.87955789]
[1751279625319,1.81743932,150.1,150.08,6.21825789]
[1751279625626,8.47773932,150.11,150.09,6.661]
[1751279625925,1.81743932,150.11,150.09,6.21825789]
[1751279626127,1.81743932,150.11,150.1,6.6606]
[1751279628426,6.66,150.12,150.1,6.6606]
[1751279628726,1.81743932,150.11,150.1,6.6606]
[1751279629327,8.47753932,150.11,150.09,12.87905789]
[1751279630726,6.6599,150.12,150.1,6.6606]
[1751279630926,1.81743932,150.11,150.1,6.6606]
[1751279634128,8.47753932,150.11,150.1,6.6606]
[1751279634325,8.47753932,150.11,150.09,12.87895789]
[1751279635928,1.81743932,150.11,150.1,6.6606]
[1751279639930,8.47753932,150.11,150.09,12.87905789]
[1751279640126,1.81743932,150.1,150.09,12.87905789]
[1751279642428,8.47753932,150.11,150.09,12.87905789]
[1751279643335,1.81743932,150.11,150.1,6.6606]
[1751279643634,1.81743932,150.11,150.09,6.21825789]
[1751279644536,1.81743932,150.11,150.09,12.87895789]
[1751279645531,1.81743932,150.11,150.09,6.21825789]
[1751279645738,1.81743932,150.11,150.1,6.6606]
[1751279651241,8.47753932,150.11,150.09,12.87905789]
[1751279652143,32.7,150.15,150.1,6.21825789]
[1751279652345,34.51743932,150.15,150.11,1.81743932]
[1751279652538,34.51743932,150.15,150.11,8.03569721]
[1751279652738,41.17603932,150.15,150.13,6.6592]
[1751279653346,1.81743932,150.14,150.13,6.6592]
[1751279654442,8.47623932,150.14,150.12,6.6595]
[1751279654642,32.7,150.16,150.12,6.6595]
[1751279654844,1.81743932,150.14,150.12,6.6595]
[1751279656548,8.47633932,150.14,150.12,6.6595]
[1751279656951,1.81743932,150.13,150.12,6.6595]
[1751279658253,8.47663932,150.13,150.11,12.87825789]
[1751279658454,1.81743932,150.12,150.1,6.21825789]
[1751279659553,1.81743932,150.12,150.11,6.6601]
[1751279659950,8.47663932,150.13,150.11,6.6601]
[1751279663255,8.47693932,150.13,150.11,6.6601]
[1751279663463,1.81743932,150.12,150.1,6.21825789]
[1751279664363,8.47733932,150.12,150.1,12.87865789]
[1751279665064,6.6599,150.12,150.1,12.87865789]
[1751279665262,1.81743932,150.12,150.1,12.87865789]
[1751279665866,1.81743932,150.11,150.1,12.87865789]
[1751279666264,1.81743932,150.11,150.1,6.6604]
[1751279667465,1.81743932,150.12,150.1,6.21825789]
[1751279668359,1.81743932,150.12,150.1,12.87845789]
[1751279670268,1.81743932,150.11,150.1,12.87845789]
[1751279672270,8.47753932,150.11,150.1,6.21825789]
[1751279672464,8.47753932,150.11,150.09,12.87925789]
[1751279672763,1.81743932,150.1,150.08,12.87945789]
[1751279672963,1.81743932,150.09,150.08,12.87945789]
[1751279674364,6.6606,150.1,150.08,12.87945789]
[1751279674568,1.81743932,150.09,150.08,12.87945789]
[1751279676058,8.47803932,150.1,150.08,12.87945789]
[1751279676461,6.6606,150.1,150.08,12.87945789]
[1751279676763,1.81743932,150.09,150.08,12.87945789]
[1751279678269,8.47803932,150.1,150.08,12.87945789]
[1751279679567,2.3119,150.15,150.06,8.27900329]
[1751279679874,34.49743932,150.14,150.11,6.22094857]
[1751279680072,41.15653932,150.14,150.11,12.88064857]
[1751279680372,34.49743932,150.14,150.11,6.22094857]
[1751279680571,34.49743932,150.14,150.13,6.6592]
[1751279681270,32.68,150.14,150.13,6.6592]
[1751279681771,32.68,150.14,150.13,12.1834308]
[1751279681970,32.68,150.14,150.13,5.5242308]
[1751279684474,34.49690997,150.14,150.13,5.5242308]
[1751279687377,41.15570997,150.14,150.12,6.6595]
[1751279687565,1.8172784,150.13,150.11,6.6599]
[1751279689077,32.68,150.14,150.11,6.6599]
[1751279689377,1.8172784,150.13,150.11,6.6599]
[1751279693479,1.8172784,150.12,150.11,6.6599]
[1751279695872,1.8172784,150.12,150.1,12.88134857]
[1751279696071,1.8181657,150.11,150.08,6.22094857]
[1751279696275,1.8181657,150.09,150.08,6.22094857]
[1751279696478,1.81863369,150.09,150.08,6.22094857]
[1751279697578,1.81863369,150.09,150.08,12.88224857]
[1751279697780,8.47963369,150.09,150.07,6.22094857]
[1751279697983,6.661,150.09,150.07,6.22094857]
[1751279698181,1.81863369,150.08,150.07,6.22094857]
[1751279698381,1.81863369,150.08,150.07,12.88284857]
[1751279698784,6.661,150.09,150.07,12.88284857]
[1751279698982,1.81863369,150.08,150.07,12.88284857]
[1751279699787,9.50293746,150.09,150.07,12.88284857]
[1751279701590,9.50293746,150.09,150.08,5.52936254]
[1751279708691,6.661,150.09,150.08,5.52936254]
[1751279708891,33.12,150.11,150.08,5.52936254]
[1751279709088,33.12,150.11,150.09,5.52936254]
[1751279709392,39.7805,150.11,150.1,5.52936254]
[1751279716995,6.6617,150.08,150.06,6.22094857]
[1751279717195,9.50363746,150.08,150.07,5.53259836]
[1751279717800,9.50363746,150.08,150.05,12.88344857]
[1751279718602,6.662,150.07,150.05,12.88344857]
[1751279718802,6.662,150.07,150.05,6.6625]
[1751279720504,6.662,150.07,150.04,6.6631]
[1751279720896,6.662,150.07,150.04,12.88404857]
[1751279721403,6.662,150.07,150.04,6.6631]
[1751279721601,9.50363746,150.08,150.05,6.6627]
[1751279721803,1.81907412,150.06,150.05,6.6627]
[1751279722203,6.6612,150.09,150.04,6.22094857]
[1751279722412,1.81907412,150.08,150.04,8.04002269]
[1751279722900,1.81907412,150.08,150.06,6.662]
[1751279723405,6.6612,150.09,150.06,6.662]
[1751279723605,1.81907412,150.08,150.07,6.6619]
[1751279724607,1.81907412,150.08,150.06,6.6621]
[1751279725810,6.6612,150.09,150.07,6.6619]
[1751279726406,6.6612,150.09,150.06,6.6621]
[1751279727717,6.6617,150.08,150.06,6.6621]
[1751279727907,2.84171958,150.1,150.05,6.6626]
[1751279728106,2.84171958,150.08,150.05,6.6626]
[1751279728307,6.6622,150.07,150.05,6.6626]
[1751279732012,6.6622,150.07,150.05,12.88354857]
[1751279733014,6.6622,150.07,150.05,6.6626]
[1751279736114,6.6617,150.08,150.06,6.6621]
[1751279737516,9.50311958,150.09,150.06,6.6623]
[1751279737817,9.50311958,150.09,150.05,6.22094857]
[1751279738016,9.50311958,150.09,150.07,6.6617]
[1751279741413,6.6614,150.09,150.07,6.6617]
[1751279741720,6.6608,150.1,150.08,6.6615]
[1751279742913,33.12,150.11,150.07,6.22094857]
[1751279743111,32.94,150.13,150.07,9.06207332]
[1751279743311,32.94,150.13,150.12,6.6594]
[1751279743516,128.14,150.15,150.09,6.22094857]
[1751279743710,128.14,150.15,150.1,6.22094857]
[1751279744127,128.14,150.15,150.13,6.659]
[1751279744716,128.12,150.15,150.13,6.659]
[1751279745524,134.7786,150.15,150.13,6.659]
[1751279746420,134.7786,150.15,150.12,6.6595]
[1751279747126,6.6586,150.15,150.12,6.6595]
[1751279747320,134.7786,150.15,150.12,6.6595]
[1751279748426,6.6589,150.14,150.12,6.6595]
[1751279749725,6.6589,150.14,150.11,6.6598]
[1751279752127,6.6593,150.13,150.11,6.6598]
[1751279753228,6.6593,150.13,150.1,6.6604]
[1751279755728,8.4766388,150.13,150.1,6.6604]
[1751279757832,8.4766388,150.13,150.09,8.03828737]
[1751279758034,8.4766388,150.13,150.1,1.8173388]
[1751279758534,8.4766388,150.13,150.11,6.6601]
[1751279759034,6.659,150.14,150.12,6.6593]
[1751279759236,32.94,150.17,150.12,1.8173388]
[1751279759431,1.8173388,150.17,150.13,1.8173388]
[1751279759732,34.7573388,150.18,150.15,1.8173388]
[1751279760135,1.8173388,150.18,150.15,1.8173388]
[1751279760528,161.22,150.2,150.16,6.6577]
[1751279760529,6.6568,150.19,150.16,6.6577]
[1751279760835,1.8173388,150.18,150.16,6.6577]
[1751279761335,1.8173388,150.17,150.16,6.6577]
[1751279761735,6.6571,150.18,150.16,6.6577]
[1751279762535,2.83808088,150.19,150.15,6.6583]
[1751279762925,2.83808088,150.19,150.13,4.5743]
[1751279763230,131.07808088,150.19,150.13,4.5743]
[1751279763430,137.73488088,150.19,150.16,6.6579]
[1751279764136,137.71488088,150.19,150.16,6.6579]
[1751279764534,9.49488088,150.19,150.17,6.6573]
[1751279764736,32.94,150.23,150.15,2.83808088]
[1751279764936,32.94,150.23,150.16,2.2038]
[1751279765231,32.94,150.23,150.22,6.6553]
[1751279765434,137.71208088,150.25,150.22,6.6553]
[1751279765830,137.71208088,150.25,150.23,6.6548]
[1751279765831,134.874,150.25,150.23,6.6548]
[1751279766033,6.654,150.25,150.23,6.6548]
[1751279766235,134.874,150.25,150.23,6.6548]
[1751279767033,32.94,150.26,150.24,6.6543]
[1751279767638,635.09808088,150.29,150.25,6.6537]
[1751279767840,128.26,150.28,150.25,6.6537]
[1751279768137,134.9129,150.28,150.25,6.6537]
[1751279768642,134.8929,150.28,150.25,6.6537]
[1751279769238,6.6529,150.28,150.25,6.6537]
[1751279769438,134.8929,150.28,150.25,6.6537]
[1751279769834,6.6532,150.27,150.24,6.6542]
[1751279770140,128.24,150.28,150.21,2.83808088]
[1751279770639,128.24,150.28,150.22,2.1491]
[1751279770941,134.8929,150.28,150.25,6.6537]
[1751279772141,6.6529,150.28,150.25,6.6537]
[1751279772338,6.6529,150.28,150.22,2.1491]
[1751279772843,6.6524,150.29,150.22,2.1491]
[1751279773139,35.77808088,150.3,150.23,2.83808088]
[1751279773337,42.43008088,150.3,150.23,2.83808088]
[1751279773743,9.49008088,150.3,150.27,6.6528]
[1751279773942,6.6522,150.29,150.27,6.6528]
[1751279774836,6.6527,150.28,150.22,2.1491]
[1751279775936,6.6527,150.28,150.25,6.6536]
[1751279776441,6.6527,150.28,150.22,2.1491]
[1751279776644,6.6524,150.29,150.26,6.6532]
[1751279777237,6.6524,150.29,150.27,6.6529]
[1751279777435,163.89808088,150.31,150.23,2.83808088]
[1751279778344,6.6517,150.3,150.27,6.653]
[1751279779145,6.6522,150.29,150.27,6.653]
[1751279780345,6.6519,150.3,150.27,6.653]
[1751279780548,6.6519,150.3,150.28,6.6525]
[1751279780846,6.6519,150.3,150.24,32.92]
[1751279781844,9.48958088,150.31,150.24,32.92]
[1751279782049,32.92,150.32,150.25,2.83808088]
[1751279782249,32.92,150.32,150.25,2.34]
[1751279782441,32.92,150.32,150.25,5.17808088]
[1751279782643,39.5711,150.32,150.29,6.6519]
[1751279782851,32.92,150.32,150.25,2.34]
[1751279783247,6.6516,150.31,150.28,6.6522]
[1751279783445,6.6516,150.31,150.25,2.34]
[1751279783645,39.571,150.32,150.29,6.6519]
[1751279784650,6.6513,150.31,150.29,6.6519]
[1751279785953,9.48938088,150.31,150.28,6.6524]
[1751279790956,6.6513,150.31,150.28,6.6524]
[1751279791358,2.83808088,150.3,150.27,6.6528]
[1751279791558,32.92,150.32,150.27,6.6528]
[1751279791749,6.6521,150.3,150.27,6.6528]
[1751279791956,128.68,150.31,150.27,6.6528]
[1751279792154,128.68,150.31,150.28,6.6526]
[1751279793557,6.652,150.3,150.28,6.6526]
[1751279795565,135.3315,150.31,150.28,6.6526]
[1751279795958,6.6517,150.3,150.28,6.6526]
[1751279801964,6.6518,150.3,150.27,6.6529]
[1751279804162,6.6523,150.29,150.24,39.14094857]
[1751279804465,35.75808088,150.32,150.22,2.1491]
[1751279804466,2.83808088,150.28,150.22,2.1491]
[1751279805065,6.6534,150.27,150.22,2.1491]
[1751279805468,9.49098088,150.28,150.25,6.6537]
[1751279805768,2.83808088,150.28,150.25,6.6537]
[1751279806169,9.49088088,150.28,150.25,6.6537]
[1751279806856,6.653,150.27,150.25,6.6537]
[1751279808770,6.6535,150.26,150.24,6.6542]
[1751279809971,6.6533,150.27,150.24,6.6542]
[1751279810463,6.6533,150.27,150.23,6.22094857]
[1751279810665,6.6533,150.27,150.24,6.22094857]
[1751279810865,39.9528,150.28,150.24,6.22094857]
[1751279811470,39.9528,150.28,150.26,6.6534]
[1751279811670,33.3,150.28,150.24,6.22094857]
[1751279812575,39.9526,150.28,150.26,6.6533]
[1751279813276,33.3,150.28,150.27,6.653]
[1751279814976,6.652,150.3,150.28,6.6524]
[1751279815882,168.3715,150.31,150.29,6.652]
[1751279816083,39.9515,150.31,150.26,6.22094857]
[1751279816381,39.9515,150.31,150.28,6.6524]
[1751279816583,6.6518,150.3,150.28,6.6524]
[1751279817775,168.3315,150.31,150.28,6.6524]
[1751279817975,168.3315,150.31,150.29,6.6521]
[1751279820081,39.9515,150.31,150.29,6.6521]
[1751279821878,168.2715,150.31,150.29,6.6521]
[1751279824786,168.2715,150.31,150.28,6.6524]